fUSD/lending_fUSD_20241216
["ID","MTS","AMOUNT","RATE_DAILY","PERIOD"]
[345540004,1734322239256,-500.0,0.00021917,3]
[345540005,1734322239267,-508.04,0.00021917,3]
[345540006,1734322239276,-508.04,0.00021917,3]
[345540007,1734322239286,-508.04,0.00021917,3]
[345540008,1734322239296,-500.0,0.00021917,3]
[345540009,1734322239309,-510.12689121,0.00021917,3]
[345540010,1734322239319,-500.0,0.00021917,3]
[345540011,1734322239330,-500.0,0.00021917,3]
[345540012,1734322239339,-500.0,0.00021917,3]
[345540013,1734322239348,-500.0,0.00021917,3]
[345540015,1734322239357,-223.17,0.00021917,3]
[345540017,1734322239367,-500.0,0.00021917,3]
[345540018,1734322239378,-500.0,0.00021917,3]
[345540019,1734322239387,-500.0,0.00021917,3]
[345540020,1734322239397,-500.0,0.00021917,3]
[345540021,1734322239406,-500.0,0.00021917,3]
[345540022,1734322239415,-178.32431671,0.00021917,3]
[345540023,1734322239425,-500.0,0.00021917,3]
[345540024,1734322239435,-503.6743002,0.00021917,3]
[345540025,1734322239444,-513.10940242,0.00021917,3]
[345540026,1734322239453,-500.0,0.00021917,3]
[345540027,1734322239464,-500.0,0.00021917,3]
[345540028,1734322239473,-612.62732584,0.00021917,3]
[345540029,1734322239482,-589.09,0.00021917,3]
[345540030,1734322239491,-554.65784324,0.00021917,3]
[345540031,1734322239500,-648.95,0.00021917,3]
[345540032,1734322239509,-500.0,0.00021917,3]
[345540033,1734322239518,-500.0,0.00021917,3]
[345540034,1734322239527,-500.0,0.00021917,3]
[345540035,1734322239536,-500.0,0.00021917,3]
[345540036,1734322239545,-500.0,0.00021917,3]
[345540037,1734322239554,-500.0,0.00021917,3]
[345540038,1734322239564,-500.0,0.00021917,3]
[345540039,1734322239573,-500.0,0.00021917,3]
[345540040,1734322239582,-554.46,0.00021917,3]
[345540041,1734322239592,-500.0,0.00021917,3]
[345540042,1734322239601,-500.0,0.00021917,3]
[345540043,1734322239611,-500.0,0.00021917,3]
[345540044,1734322239620,-500.0,0.00021917,3]
[345540045,1734322239629,-500.0,0.00021917,3]
[345540046,1734322239638,-500.0,0.00021917,3]
[345540047,1734322239647,-500.0,0.00021917,3]
[345540048,1734322239656,-500.0,0.00021917,3]
[345540049,1734322239665,-500.0,0.00021917,3]
[345540050,1734322239674,-500.0,0.00021917,3]
[345540051,1734322239683,-515.41507831,0.00021917,3]
[345540052,1734322239692,-500.0,0.00021917,3]
[345540053,1734322239701,-500.0,0.00021917,3]
[345540054,1734322239711,-500.0,0.00021917,3]
[345540055,1734322239721,-500.0,0.00021917,3]
[345540056,1734322239730,-500.0,0.00021917,3]
[345540057,1734322239739,-500.0,0.00021917,3]
[345540058,1734322239748,-500.0,0.00021917,3]
[345540059,1734322239757,-500.0,0.00021917,3]
[345540060,1734322239767,-500.0,0.00021917,3]
[345540061,1734322239776,-161.49965288,0.00021917,3]
[345540062,1734322239785,-500.0,0.00021917,3]
[345540063,1734322239794,-500.0,0.00021917,3]
[345540064,1734322239803,-500.0,0.00021917,3]
[345540065,1734322239813,-500.0,0.00021917,3]
[345540066,1734322239822,-500.0,0.00021917,3]
[345540067,1734322239831,-500.0,0.00021917,3]
[345540068,1734322239842,-157.74162615,0.00021918,2]
[345540069,1734322239851,-205.0,0.0002192,2]
[345540070,1734322239861,-212.0,0.0002192,2]
[345540071,1734322239870,-1457.12950071,0.00021947,2]
[345540072,1734322239879,-689.49401804,0.00021956,2]
[345540073,1734322239888,-875.82,0.00021962,7]
[345540074,1734322239897,-875.82,0.00021962,7]
[345540075,1734322239907,-875.82,0.00021962,7]
[345540076,1734322239918,-875.82,0.00021962,7]
[345540077,1734322239928,-176.04831301,0.00021973,2]
[345540078,1734322239938,-1049.75647366,0.0002199,2]
[345540079,1734322239947,-500.0,0.00021999,3]
[345540080,1734322239958,-500.0,0.00021999,3]
[345540081,1734322239967,-500.0,0.00021999,3]
[345540082,1734322239975,-500.0,0.00021999,3]
[345540083,1734322239984,-500.0,0.00021999,3]
[345540084,1734322239993,-500.0,0.00021999,3]
[345540085,1734322240002,-552.04,0.00021999,3]
[345540086,1734322240011,-500.0,0.00021999,3]
[345540087,1734322240020,-500.0,0.00021999,3]
[345540088,1734322240029,-500.0,0.00021999,3]
[345540089,1734322240037,-500.0,0.00021999,3]
[345540090,1734322240047,-500.0,0.00021999,3]
[345540091,1734322240056,-500.0,0.00021999,3]
[345540092,1734322240065,-500.0,0.00021999,3]
[345540093,1734322240074,-500.0,0.00021999,3]
[345540094,1734322240083,-500.0,0.00021999,3]
[345540095,1734322240092,-270.15199387,0.00021999,3]
[345540096,1734322240101,-500.0,0.00021999,3]
[345540097,1734322240110,-500.0,0.00021999,3]
[345540098,1734322240119,-500.0,0.00021999,3]
[345540099,1734322240128,-725.34,0.00021999,3]
[345540100,1734322240139,-7500.0,0.00021999,2]
[345540101,1734322240149,-555.35,0.00021999,3]
[345540102,1734322240159,-500.0,0.00021999,3]
[345540103,1734322240168,-500.0,0.00021999,3]
[345540104,1734322240178,-500.13,0.00021999,3]
[345540105,1734322240187,-565.23,0.00021999,3]
[345540106,1734322240196,-611.46,0.00021999,3]
[345540107,1734322240206,-500.0,0.00021999,3]
[345540108,1734322240215,-500.0,0.00021999,3]
[345540109,1734322240224,-500.0,0.00021999,3]
[345540110,1734322240233,-500.0,0.00021999,3]
[345540111,1734322240242,-18000.0,0.00022,3]
[345540112,1734322240251,-505.55389025,0.00022,2]
[345540113,1734322240261,-500.0,0.00022,2]
[345540114,1734322240270,-500.0,0.00022,2]
[345540115,1734322240280,-500.0,0.00022,2]
[345540116,1734322240289,-500.0,0.00022,2]
[345540117,1734322240301,-500.0,0.00022,2]
[345540118,1734322240310,-500.0,0.00022,2]
[345540119,1734322240318,-500.0,0.00022,2]
[345540120,1734322240327,-909.97403071,0.00022,2]
[345540121,1734322240336,-500.0,0.00022,2]
[345540122,1734322240346,-522.69667333,0.00022,2]
[345540123,1734322240355,-500.0,0.00022,2]
[345540124,1734322240363,-510.29123749,0.00022,2]
[345540125,1734322240373,-500.0,0.00022,2]
[345540126,1734322240383,-508.11885949,0.00022,2]
[345540127,1734322240392,-689.49401804,0.00022011,2]
[345540128,1734322240401,-1457.12950071,0.00022011,2]
[345540129,1734322240410,-356.5541094,0.0002205,2]
[345540130,1734322240419,-1588.0,0.0002205,2]
[345540131,1734322240427,-176.04831301,0.00022055,2]
[345540132,1734322240436,-157.74162615,0.00022055,2]
[345540133,1734322240445,-159.52122474,0.00022064,2]
[345540134,1734322240454,-689.49401804,0.00022067,2]
[345540135,1734322240464,-1457.12950071,0.00022076,2]
[345540136,1734322240473,-150.0,0.00022097,2]
[345540137,1734322240482,-689.49401804,0.00022122,2]
[345540138,1734322240491,-1049.75647366,0.00022127,2]
[345540139,1734322240499,-1457.12950071,0.00022141,2]
[345540140,1734322240509,-150.93,0.00022152,2]
[345540141,1734322240518,-169.914015,0.00022152,2]
[345540142,1734322240527,-500.0,0.00022161,3]
[345540143,1734322240536,-500.0,0.00022161,3]
[345540144,1734322240545,-500.0,0.00022161,3]
[345540145,1734322240553,-500.0,0.00022161,3]
[345540146,1734322240562,-500.0,0.00022161,3]
[345540147,1734322240571,-2208.33,0.00022161,3]
[345540148,1734322240579,-500.0,0.00022161,3]
[345540149,1734322240589,-500.0,0.00022161,3]
[345540150,1734322240598,-741.74,0.00022161,3]
[345540151,1734322240607,-500.0,0.00022161,3]
[345540152,1734322240616,-500.0,0.00022161,3]
[345540153,1734322240625,-500.0,0.00022161,3]
[345540154,1734322240634,-500.0,0.00022161,3]
[345540155,1734322240644,-500.0,0.00022161,3]
[345540156,1734322240653,-207.52844878,0.00022161,3]
[345540157,1734322240662,-500.0,0.00022161,3]
[345540158,1734322240671,-500.0,0.00022161,3]
[345540159,1734322240680,-500.0,0.00022161,3]
[345540160,1734322240690,-500.0,0.00022161,3]
[345540161,1734322240699,-500.0,0.00022161,3]
[345540162,1734322240708,-500.0,0.00022161,3]
[345540163,1734322240717,-500.0,0.00022161,3]
[345540164,1734322240727,-500.0,0.00022161,3]
[345540165,1734322240736,-500.0,0.00022161,3]
[345540166,1734322240745,-500.0,0.00022161,3]
[345540167,1734322240754,-500.0,0.00022161,3]
[345540168,1734322240764,-500.0,0.00022161,3]
[345540169,1734322240773,-500.0,0.00022161,3]
[345540170,1734322240781,-500.0,0.00022161,3]
[345540171,1734322240790,-500.0,0.00022161,3]
[345540172,1734322240799,-515.62,0.00022161,3]
[345540173,1734322240808,-500.0,0.00022161,3]
[345540174,1734322240817,-500.0,0.00022161,3]
[345540175,1734322240827,-500.0,0.00022161,3]
[345540176,1734322240836,-500.0,0.00022161,3]
[345540177,1734322240845,-500.0,0.00022161,3]
[345540178,1734322240854,-500.0,0.00022161,3]
[345540179,1734322240863,-150.16,0.00022161,2]
[345540180,1734322240872,-150.16,0.00022161,2]
[345540181,1734322240881,-500.0,0.00022161,3]
[345540182,1734322240890,-539.22,0.00022161,3]
[345540183,1734322240899,-500.0,0.00022162,3]
[345540184,1734322240908,-500.0,0.00022162,3]
[345540185,1734322240917,-501.38972996,0.00022162,3]
[345540186,1734322240926,-449.95964946,0.00022162,3]
[345540187,1734322240935,-501.5720396,0.00022162,3]
[345540188,1734322240944,-500.0,0.00022162,3]
[345540189,1734322240952,-501.32816678,0.00022162,3]
[345540190,1734322240962,-503.57498658,0.00022162,3]
[345540191,1734322240972,-500.0,0.00022162,3]
[345540192,1734322240980,-500.0,0.00022162,3]
[345540193,1734322240989,-500.0,0.00022162,3]
[345540194,1734322240998,-500.0,0.00022162,3]
[345540195,1734322241007,-603.06151278,0.00022162,3]
[345540196,1734322241016,-500.0,0.00022162,3]
[345540197,1734322241025,-500.0,0.00022162,3]
[345540198,1734322241034,-354.19789616,0.00022162,3]
[345540199,1734322241043,-500.0,0.00022162,3]
[345540200,1734322241051,-623.2,0.00022162,3]
[345540201,1734322241060,-500.0,0.00022162,3]
[345540202,1734322241069,-500.0,0.00022162,3]
[345540203,1734322241079,-477.57267416,0.00022162,3]
[345540204,1734322241088,-500.0,0.00022162,3]
[345540205,1734322241097,-500.0,0.00022162,3]
[345540206,1734322241106,-500.0,0.00022162,3]
[345540207,1734322241115,-500.0,0.00022162,3]
[345540208,1734322241124,-500.0,0.00022162,3]
[345540209,1734322241133,-500.0,0.00022162,3]
[345540210,1734322241142,-500.0,0.00022162,3]
[345540211,1734322241151,-500.0,0.00022162,3]
[345540212,1734322241161,-500.0,0.00022162,3]
[345540213,1734322241170,-500.0,0.00022162,3]
[345540214,1734322241179,-500.0,0.00022162,3]
[345540215,1734322241188,-551.68510228,0.00022162,2]
[345540216,1734322241198,-394.72447443,0.00022162,3]
[345540217,1734322241208,-503.37161219,0.00022162,3]
[345540218,1734322241217,-500.0,0.00022162,3]
[345540219,1734322241226,-199.18,0.00022162,3]
[345540220,1734322241235,-500.0,0.00022162,3]
[345540221,1734322241246,-502.0917105,0.00022162,3]
[345540222,1734322241258,-500.0,0.00022162,3]
[345540223,1734322241268,-635.29,0.00022162,3]
[345540224,1734322241419,-500.0,0.00022162,3]
[345540225,1734322241429,-500.0,0.00022162,3]
[345540226,1734322241438,-321.28500252,0.00022162,3]
[345540227,1734322241447,-500.0,0.00022162,3]
[345540228,1734322241458,-500.0,0.00022162,3]
[345540229,1734322241467,-500.0,0.00022162,3]
[345540230,1734322241476,-1000.0,0.00022162,30]
[345540231,1734322241485,-500.0,0.00022162,3]
[345540232,1734322241494,-500.0,0.00022162,3]
[345540233,1734322241503,-500.0,0.00022162,3]
[345540234,1734322241512,-500.0,0.00022162,3]
[345540235,1734322241521,-800.99,0.00022162,3]
[345540236,1734322241530,-500.0,0.00022162,3]
[345540237,1734322241540,-500.0,0.00022162,3]
[345540238,1734322241549,-500.0,0.00022162,3]
[345540239,1734322241558,-500.0,0.00022162,3]
[345540240,1734322241567,-500.0,0.00022162,3]
[345540241,1734322241576,-500.0,0.00022162,3]
[345540242,1734322241585,-500.0,0.00022162,3]
[345540243,1734322241594,-500.0,0.00022162,3]
[345540244,1734322241604,-500.0,0.00022162,3]
[345540245,1734322241613,-500.0,0.00022162,3]
[345540246,1734322241622,-500.0,0.00022162,3]
[345540247,1734322241632,-500.0,0.00022162,3]
[345540248,1734322241641,-634.75,0.00022162,3]
[345540249,1734322241650,-500.0,0.00022162,3]
[345540250,1734322241659,-1000.0,0.00022162,2]
[345540251,1734322241669,-264.09183943,0.00022162,3]
[345540252,1734322241678,-500.0,0.00022162,3]
[345540253,1734322241687,-503.25229623,0.00022162,3]
[345540254,1734322241696,-1357.3,0.00022162,3]
[345540255,1734322241705,-506.73272022,0.00022162,3]
[345540256,1734322241716,-571.66628474,0.00022162,3]
[345540257,1734322241725,-517.68793315,0.00022162,3]
[345540258,1734322241734,-500.0,0.00022162,3]
[345540259,1734322241744,-500.0,0.00022162,3]
[345540260,1734322241753,-504.5143589,0.00022162,3]
[345540261,1734322241762,-500.0,0.00022162,3]
[345540262,1734322241771,-500.0,0.00022162,3]
[345540263,1734322241780,-500.0,0.00022162,3]
[345540264,1734322241789,-502.07803306,0.00022162,3]
[345540265,1734322241799,-340.33678042,0.00022162,3]
[345540266,1734322241808,-503.30826676,0.00022162,3]
[345540267,1734322241817,-500.0,0.00022162,3]
[345540268,1734322241827,-500.0,0.00022162,3]
[345540269,1734322241836,-500.0,0.00022162,3]
[345540270,1734322241845,-500.0,0.00022162,3]
[345540271,1734322241855,-500.0,0.00022162,3]
[345540272,1734322241865,-500.0,0.00022162,3]
[345540273,1734322241874,-500.0,0.00022162,3]
[345540274,1734322241884,-500.0,0.00022162,3]
[345540275,1734322241894,-500.0,0.00022162,3]
[345540276,1734322241904,-500.0,0.00022162,3]
[345540277,1734322241913,-500.0,0.00022162,3]
[345540278,1734322241923,-500.0,0.00022162,3]
[345540279,1734322241933,-501.15858984,0.00022162,3]
[345540280,1734322241943,-500.0,0.00022162,3]
[345540281,1734322241952,-500.0,0.00022162,3]
[345540282,1734322241962,-504.41637481,0.00022162,3]
[345540283,1734322241971,-500.0,0.00022162,3]
[345540284,1734322241980,-500.0,0.00022162,3]
[345540285,1734322241989,-500.0,0.00022162,3]
[345540286,1734322241998,-500.0,0.00022162,3]
[345540287,1734322242007,-500.0,0.00022162,3]
[345540288,1734322242017,-501.31245799,0.00022162,3]
[345540289,1734322242027,-500.0,0.00022162,3]
[345540290,1734322242036,-500.0,0.00022162,3]
[345540291,1734322242046,-500.0,0.00022162,3]
[345540292,1734322242055,-500.0,0.00022162,3]
[345540293,1734322242065,-500.0,0.00022162,3]
[345540294,1734322242075,-483.33385142,0.00022162,3]
[345540295,1734322242084,-500.0,0.00022162,3]
[345540296,1734322242093,-500.0,0.00022162,3]
[345540297,1734322242102,-500.0,0.00022162,3]
[345540298,1734322242111,-500.0,0.00022162,3]
[345540299,1734322242121,-500.0,0.00022162,3]
[345540300,1734322242131,-500.0,0.00022162,3]
[345540301,1734322242140,-500.0,0.00022162,3]
[345540302,1734322242150,-500.0,0.00022162,3]
[345540303,1734322242160,-500.0,0.00022162,3]
[345540304,1734322242170,-502.02254192,0.00022162,3]
[345540305,1734322242179,-500.0,0.00022162,3]
[345540306,1734322242189,-500.0,0.00022162,3]
[345540307,1734322242199,-500.0,0.00022162,3]
[345540308,1734322242209,-500.0,0.00022162,3]
[345540309,1734322242218,-552.04,0.00022162,3]
[345540310,1734322242228,-500.0,0.00022162,3]
[345540311,1734322242237,-500.0,0.00022162,3]
[345540312,1734322242247,-500.0,0.00022162,3]
[345540315,1734322242257,-500.0,0.00022162,3]
[345540316,1734322242266,-500.0,0.00022162,3]
[345540317,1734322242276,-500.0,0.00022162,3]
[345540318,1734322242285,-500.0,0.00022162,3]
[345540319,1734322242295,-500.0,0.00022162,3]
[345540320,1734322242309,-500.0,0.00022162,3]
[345540321,1734322242318,-500.0,0.00022162,3]
[345540322,1734322242327,-502.20488826,0.00022162,3]
[345540323,1734322242336,-502.15981891,0.00022162,3]
[345540324,1734322242346,-500.0,0.00022162,3]
[345540325,1734322242355,-500.0,0.00022162,3]
[345540326,1734322242365,-502.87541995,0.00022162,3]
[345540327,1734322242375,-500.0,0.00022162,3]
[345540328,1734322242384,-500.0,0.00022162,3]
[345540329,1734322242393,-500.0,0.00022162,3]
[345540330,1734322242403,-500.0,0.00022162,3]
[345540331,1734322242412,-500.0,0.00022162,3]
[345540332,1734322242421,-306.76310218,0.00022162,3]
[345540333,1734322242431,-500.0,0.00022162,3]
[345540334,1734322242440,-500.0,0.00022162,3]
[345540335,1734322242450,-500.0,0.00022162,3]
[345540336,1734322242460,-500.0,0.00022162,3]
[345540337,1734322242469,-500.0,0.00022162,3]
[345540338,1734322242479,-500.0,0.00022162,3]
[345540339,1734322242490,-500.0,0.00022162,3]
[345540340,1734322242500,-500.0,0.00022162,3]
[345540341,1734322242509,-500.98971782,0.00022162,3]
[345540342,1734322242518,-517.49113262,0.00022162,3]
[345540343,1734322242528,-500.0,0.00022162,3]
[345540344,1734322242537,-500.0,0.00022162,3]
[345540345,1734322242546,-500.0,0.00022162,3]
[345540346,1734322242556,-500.0,0.00022162,3]
[345540347,1734322242565,-501.45375759,0.00022162,3]
[345540348,1734322242575,-500.0,0.00022162,3]
[345540349,1734322242584,-500.0,0.00022162,3]
[345540350,1734322242593,-500.77041181,0.00022162,3]
[345540351,1734322242602,-500.0,0.00022162,3]
[345540352,1734322242611,-500.0,0.00022162,3]
[345540353,1734322242622,-500.0,0.00022162,3]
[345540354,1734322242631,-312.69,0.00022162,3]
[345540355,1734322242641,-500.0,0.00022162,3]
[345540356,1734322242650,-508.03979343,0.00022162,3]
[345540357,1734322242660,-500.0,0.00022162,3]
[345540358,1734322242669,-500.0,0.00022162,3]
[345540359,1734322242679,-500.0,0.00022162,3]
[345540360,1734322242688,-500.0,0.00022162,3]
[345540361,1734322242697,-504.5795788,0.00022162,3]
[345540362,1734322242707,-500.0,0.00022162,3]
[345540363,1734322242717,-502.73226455,0.00022162,3]
[345540364,1734322242727,-500.0,0.00022162,3]
[345540365,1734322242737,-500.0,0.00022162,3]
[345540366,1734322242746,-500.0,0.00022162,3]
[345540367,1734322242756,-502.74599641,0.00022162,3]
[345540368,1734322242765,-500.0,0.00022162,3]
[345540369,1734322242775,-500.0,0.00022162,3]
[345540370,1734322242789,-500.0,0.00022162,3]
[345540371,1734322242800,-725.34,0.00022162,3]
[345540372,1734322242810,-500.0,0.00022162,3]
[345540373,1734322242820,-506.2950957,0.00022162,3]
[345540374,1734322242828,-500.0,0.00022162,3]
[345540375,1734322242838,-500.0,0.00022162,3]
[345540376,1734322242848,-500.0,0.00022162,3]
[345540377,1734322242857,-500.0,0.00022162,3]
[345540378,1734322242867,-501.68333544,0.00022162,3]
[345540379,1734322242877,-500.0,0.00022162,3]
[345540380,1734322242886,-500.0,0.00022162,3]
[345540381,1734322242896,-502.021969,0.00022162,3]
[345540382,1734322242906,-500.0,0.00022162,3]
[345540383,1734322242916,-500.0,0.00022162,3]
[345540384,1734322242925,-500.0,0.00022162,3]
[345540385,1734322242934,-501.85639296,0.00022162,3]
[345540386,1734322242944,-555.35,0.00022162,3]
[345540387,1734322242953,-500.0,0.00022162,3]
[345540388,1734322242964,-500.0,0.00022162,3]
[345540389,1734322242973,-500.0,0.00022162,3]
[345540390,1734322242982,-500.0,0.00022162,3]
[345540391,1734322242993,-500.0,0.00022162,3]
[345540392,1734322243003,-500.0,0.00022162,3]
[345540393,1734322243012,-500.0,0.00022162,3]
[345540394,1734322243021,-506.8517545,0.00022162,3]
[345540395,1734322243030,-500.0,0.00022162,3]
[345540396,1734322243039,-500.0,0.00022162,3]
[345540397,1734322243049,-500.0,0.00022162,3]
[345540398,1734322243059,-611.46,0.00022162,3]
[345540399,1734322243068,-500.0,0.00022162,3]
[345540400,1734322243078,-500.0,0.00022162,3]
[345540401,1734322243087,-500.0,0.00022162,3]
[345540402,1734322243096,-500.0,0.00022162,3]
[345540403,1734322243105,-500.0,0.00022162,3]
[345540404,1734322243115,-568.50995631,0.00022162,3]
[345540405,1734322243124,-5371.0,0.00022162,2]
[345540406,1734322243134,-185699.07226884,0.00022163,2]
[345540407,1734322243144,-176.04831301,0.00022164,2]
[345540408,1734322243154,-157.74162615,0.00022164,2]
[345540409,1734322243163,-689.49401804,0.00022178,2]
[345540410,1734322243172,-223.793692,0.00022199,3]
[345540411,1734322243182,-500.0,0.00022199,3]
[345540412,1734322243191,-500.0,0.00022199,3]
[345540413,1734322243200,-500.0,0.00022199,3]
[345540414,1734322243210,-2208.33,0.00022199,3]
[345540415,1734322243230,-500.0,0.00022199,3]
[345540416,1734322243240,-500.0,0.00022199,3]
[345540417,1734322243250,-741.74,0.00022199,3]
[345540418,1734322243259,-500.0,0.00022199,3]
[345540419,1734322243268,-500.0,0.00022199,3]
[345540420,1734322243278,-500.0,0.00022199,3]
[345540421,1734322243287,-500.0,0.00022199,3]
[345540422,1734322243297,-500.0,0.00022199,3]
[345540423,1734322243311,-500.0,0.00022199,3]
[345540424,1734322243321,-500.0,0.00022199,3]
[345540425,1734322243331,-500.0,0.00022199,3]
[345540426,1734322243340,-500.0,0.00022199,3]
[345540427,1734322243350,-500.0,0.00022199,3]
[345540428,1734322243360,-500.0,0.00022199,3]
[345540429,1734322243369,-500.0,0.00022199,3]
[345540430,1734322243378,-500.0,0.00022199,3]
[345540431,1734322243388,-500.0,0.00022199,3]
[345540432,1734322243397,-500.0,0.00022199,3]
[345540433,1734322243406,-500.0,0.00022199,3]
[345540434,1734322243416,-500.0,0.00022199,3]
[345540435,1734322243426,-500.0,0.00022199,3]
[345540436,1734322243436,-500.0,0.00022199,3]
[345540437,1734322243445,-515.62,0.00022199,3]
[345540438,1734322243455,-500.0,0.00022199,3]
[345540439,1734322243465,-500.0,0.00022199,3]
[345540440,1734322243475,-500.0,0.00022199,3]
[345540441,1734322243485,-500.0,0.00022199,3]
[345540442,1734322243495,-500.0,0.00022199,3]
[345540443,1734322243504,-500.0,0.00022199,3]
[345540444,1734322243514,-500.0,0.00022199,3]
[345540445,1734322243523,-539.22,0.00022199,3]
[345540446,1734322243533,-1500.0,0.000222,2]
[345540447,1734322243543,-3000.0,0.000222,2]
[345540448,1734322243553,-27000.0,0.000222,2]
[345540449,1734322243563,-1634.0,0.000222,2]
[345540450,1734322243572,-1457.12950071,0.00022206,2]
[345540451,1734322243582,-150.0,0.00022227,2]
[345540452,1734322243592,-875.82,0.00022235,7]
[345540453,1734322243602,-875.82,0.00022235,7]
[345540454,1734322243612,-815.53664606,0.00022242,2]
[345540455,1734322243621,-150.0,0.00022243,2]
[345540456,1734322243631,-150.0,0.00022244,2]
[345540457,1734322243640,-150.0,0.00022253,2]
[345540458,1734322243649,-150.0,0.00022254,2]
[345540459,1734322243659,-150.0,0.00022257,2]
[345540460,1734322243669,-150.0,0.00022262,2]
[345540461,1734322243679,-1049.75647366,0.00022263,2]
[345540462,1734322243688,-150.0,0.00022264,2]
[345540463,1734322243698,-2449.78584,0.0002227,2]
[345540464,1734322243707,-1457.12950071,0.0002227,2]
[345540465,1734322243718,-150.0,0.00022272,2]
[345540466,1734322243727,-176.04831301,0.00022274,2]
[345540467,1734322243737,-157.74162615,0.00022274,2]
[345540468,1734322243746,-1588.0,0.00022275,2]
[345540469,1734322243756,-150.0,0.00022277,2]
[345540470,1734322243765,-205.0,0.0002228,2]
[345540471,1734322243775,-212.0,0.0002228,2]
[345540472,1734322243784,-150.0,0.00022282,2]
[345540473,1734322243794,-1500.0,0.00022286,2]
[345540474,1734322243803,-1500.0,0.00022288,2]
[345540475,1734322243812,-1500.0,0.00022291,2]
[345540476,1734322243822,-1500.0,0.00022293,2]
[345540477,1734322243832,-502.86235044,0.00022299,3]
[345540478,1734322243842,-150.0,0.00022299,2]
[345540479,1734322243851,-269.48197873,0.00022299,3]
[345540480,1734322243860,-282.52,0.00022299,3]
[345540481,1734322243870,-500.0,0.00022299,3]
[345540482,1734322243879,-500.0,0.00022299,3]
[345540483,1734322243889,-500.0,0.00022299,3]
[345540484,1734322243898,-500.0,0.00022299,3]
[345540485,1734322243907,-514.88564934,0.00022299,3]
[345540486,1734322243917,-623.2,0.00022299,3]
[345540487,1734322243926,-500.0,0.00022299,3]
[345540488,1734322243935,-500.0,0.00022299,3]
[345540489,1734322243945,-623.54622898,0.00022299,3]
[345540490,1734322243954,-157.29,0.00022299,3]
[345540491,1734322243962,-408.16204037,0.00022299,3]
[345540492,1734322243972,-500.0,0.00022299,3]
[345540493,1734322243982,-617.29695702,0.00022299,3]
[345540494,1734322243991,-500.0,0.00022299,3]
[345540495,1734322244000,-500.0,0.00022299,3]
[345540496,1734322244009,-500.0,0.00022299,3]
[345540497,1734322244019,-500.0,0.00022299,3]
[345540498,1734322244028,-500.0,0.00022299,3]
[345540499,1734322244037,-500.0,0.00022299,3]
[345540500,1734322244047,-1000.0,0.00022299,30]
[345540501,1734322244056,-500.0,0.00022299,3]
[345540502,1734322244066,-500.0,0.00022299,3]
[345540503,1734322244075,-500.0,0.00022299,3]
[345540504,1734322244084,-500.0,0.00022299,3]
[345540505,1734322244093,-800.99,0.00022299,3]
[345540506,1734322244103,-500.0,0.00022299,3]
[345540507,1734322244112,-500.0,0.00022299,3]